fUSD/lending_fUSD_20260118
["ID","MTS","AMOUNT","RATE_DAILY","PERIOD"]
[402653400,1768746645770,-11.24446462,0.00018,2]
[402653416,1768746737635,151.37,8.437e-05,2]
[402653417,1768746737838,151.37,8.964e-05,2]
[402653418,1768746738032,151.37,9.491e-05,2]
[402653419,1768746738266,151.37,0.00010019,2]
[402653420,1768746738426,151.37,0.00010546,2]
[402653421,1768746738638,151.37,0.00011073,2]
[402653422,1768746738835,151.37,0.00011601,2]
[402653423,1768746739053,151.37,0.00012128,2]
[402653424,1768746739252,151.37,0.00012655,2]
[402653425,1768746739444,151.37,0.00013183,2]
[402653426,1768746739677,151.37,0.0001371,2]
[402653427,1768746739946,151.37,0.00014237,2]
[402653428,1768746740281,151.37,0.00014765,2]
[402653452,1768746939959,-151.37,0.00015292,2]
[402653539,1768747081869,16041.95748187,0.00027,120]
[402653588,1768747299545,380.31893108,0.00015292,2]
[402653657,1768747831566,-719.62920142,0.00015507,2]
[402653661,1768747831743,-1410.1452036,0.00015507,2]
[402653662,1768747831755,-3144.54061274,0.00015507,2]
[402653663,1768747831882,-2617.90098224,0.00015507,2]
[402653664,1768747831891,-1200.0,0.000157,2]
[402653665,1768747831900,-166.66,0.00015701,2]
[402653666,1768747831910,-151.37,0.00015819,2]
[402653667,1768747831919,-161.42049032,0.00015873,2]
[402653668,1768747831928,-300.0,0.00015972,2]
[402653669,1768747831938,-300.0,0.00015972,2]
[402653670,1768747831948,-524.9564804,0.00015973,2]
[402653671,1768747831957,-500.0,0.00015973,2]
[402653672,1768747831966,-500.0,0.00015973,2]
[402653673,1768747831976,-500.0,0.00015973,2]
[402653674,1768747831985,-500.0,0.00015973,2]
[402653675,1768747831995,-501.80765562,0.00015973,2]
[402653676,1768747832004,-500.0,0.00015973,2]
[402653677,1768747832014,-500.0,0.00015973,2]
[402653678,1768747832023,-500.0,0.00015973,2]
[402653679,1768747832033,-500.0,0.00015973,2]
[402653680,1768747832042,-500.0,0.00015973,2]
[402653681,1768747832052,-500.0,0.00015973,2]
[402653682,1768747832062,-500.0,0.00015999,2]
[402653683,1768747832071,-151.0,0.0001601,2]
[402653684,1768747832080,-151.0,0.0001601,2]
[402653685,1768747832090,-151.0,0.0001601,2]
[402653686,1768747832100,-166.66,0.00016031,2]
[402653687,1768747832109,-150.0,0.000162,2]
[402653688,1768747832119,-150.0,0.000162,2]
[402653689,1768747832129,-150.0,0.000162,2]
[402653690,1768747832140,-150.0,0.000162,2]
[402653691,1768747832149,-150.0,0.000162,2]
[402653692,1768747832159,-3123.86,0.00016316,2]
[402653693,1768747832168,-161.42049032,0.00016333,2]
[402653694,1768747832178,-151.37,0.00016347,2]
[402653695,1768747832187,-166.66,0.00016362,2]
[402653696,1768747832197,-150.0,0.0001638,2]
[402653697,1768747832206,-160.94,0.00016399,2]
[402653698,1768747832215,-1074.04,0.00016416,2]
[402653699,1768747832225,-257.66468967,0.00016416,2]
[402653700,1768747832234,-207.54661423,0.00016416,2]
[402653701,1768747832244,-500.0,0.00016416,2]
[402653702,1768747832254,-500.0,0.00016416,2]
[402653703,1768747832263,-500.0,0.00016416,2]
[402653704,1768747832272,-500.0,0.00016416,2]
[402653705,1768747832281,-500.0,0.00016416,2]
[402653706,1768747832289,-187.56046723,0.00016416,2]
[402653707,1768747832298,-500.0,0.00016416,2]
[402653708,1768747832307,-500.0,0.00016416,2]
[402653709,1768747832316,-500.0,0.00016416,2]
[402653710,1768747832325,-500.0,0.00016416,2]
[402653711,1768747832334,-500.0,0.00016416,2]
[402653712,1768747832342,-500.0,0.00016416,2]
[402653713,1768747832351,-500.0,0.00016416,2]
[402653714,1768747832360,-500.0,0.00016416,2]
[402653715,1768747832369,-500.0,0.00016416,2]
[402653716,1768747832378,-500.0,0.00016416,2]
[402653717,1768747832388,-500.0,0.00016416,2]
[402653718,1768747832399,-500.0,0.00016416,2]
[402653719,1768747832408,-500.0,0.00016416,2]
[402653720,1768747832417,-500.0,0.00016416,2]
[402653721,1768747832426,-500.0,0.00016416,2]
[402653722,1768747832437,-500.0,0.00016416,2]
[402653723,1768747832446,-500.0,0.00016416,2]
[402653724,1768747832455,-500.0,0.00016416,2]
[402653725,1768747832465,-500.0,0.00016416,2]
[402653726,1768747832474,-500.0,0.00016416,2]
[402653727,1768747832483,-500.0,0.00016416,2]
[402653728,1768747832492,-500.0,0.00016416,2]
[402653729,1768747832501,-500.0,0.00016416,2]
[402653730,1768747832510,-500.0,0.00016416,2]
[402653731,1768747832519,-500.0,0.00016416,2]
[402653732,1768747832527,-500.0,0.00016416,2]
[402653733,1768747832536,-500.0,0.00016416,2]
[402653734,1768747832545,-500.0,0.00016416,2]
[402653735,1768747832555,-297.99173364,0.00016416,2]
[402653736,1768747832564,-500.0,0.00016416,2]
[402653737,1768747832573,-500.0,0.00016416,2]
[402653738,1768747832582,-500.0,0.00016416,2]
[402653739,1768747832592,-500.0,0.00016416,2]
[402653740,1768747832601,-500.0,0.00016416,2]
[402653741,1768747832611,-500.0,0.00016416,2]
[402653742,1768747832620,-500.0,0.00016416,2]
[402653743,1768747832630,-500.0,0.00016416,2]
[402653744,1768747832639,-500.0,0.00016416,2]
[402653745,1768747832649,-500.0,0.00016416,2]
[402653746,1768747832658,-500.0,0.00016416,2]
[402653747,1768747832667,-500.0,0.00016416,2]
[402653748,1768747832676,-500.0,0.00016416,2]
[402653749,1768747832685,-500.0,0.00016416,2]
[402653750,1768747832694,-500.00000001,0.00016416,2]
[402653751,1768747832703,-500.0,0.00016416,2]
[402653752,1768747832712,-500.0,0.00016416,2]
[402653753,1768747832721,-500.0,0.00016416,2]
[402653754,1768747832730,-500.0,0.00016416,2]
[402653755,1768747832739,-200.0,0.00016416,2]
[402653756,1768747832747,-216.98729458,0.0001642,2]
[402653757,1768747832756,-173.25361759,0.0001642,2]
[402653758,1768747832765,-622.71526966,0.0001642,2]
[402653759,1768747832774,-471.64,0.00016433,2]
[402653760,1768747832783,-183.38124266,0.00016438,2]
[402653761,1768747832792,-348.62,0.000165,2]
[402653762,1768747832800,-1000.0,0.00016521,2]
[402653763,1768747832809,-168.87143056,0.00016521,2]
[402653764,1768747832818,-150.0,0.0001656,2]
[402653765,1768747832827,-156.69,0.00016632,2]
[402653766,1768747832836,-1074.04,0.0001669,2]
[402653767,1768747832844,-166.66,0.00016692,2]
[402653768,1768747832854,-434.51,0.00016701,2]
[402653769,1768747832863,-150.0,0.0001674,2]
[402653770,1768747832871,-151.37,0.00016874,2]
[402653771,1768747832881,-528766.4577571,0.00016888,2]
[402653772,1768747832890,-166.67,0.00016911,2]
[402653773,1768747832900,-150.0,0.0001692,2]
[402653774,1768747832909,-1074.04,0.00016964,2]
[402653775,1768747832918,-436.2,0.00016973,2]
[402653776,1768747832928,-4030.0,0.00016994,2]
[402653777,1768747832938,-250.0,0.00017,2]
[402653778,1768747832947,-166.66,0.00017023,2]
[402653779,1768747832957,-154.32,0.00017041,2]
[402653780,1768747832966,-200.0,0.00017058,2]
[402653781,1768747832975,-201.62067838,0.00017058,2]
[402653782,1768747832984,-250.0,0.00017058,2]
[402653783,1768747832993,-436.2,0.00017066,2]
[402653784,1768747833003,-601.69074588,0.00017068,2]
[402653785,1768747833013,-334.5472959,0.00017099,2]
[402653786,1768747833023,-4001.0,0.00017099,2]
[402653787,1768747833033,-642.94,0.00017099,2]
[402653788,1768747833042,-151.0,0.00017099,2]
[402653789,1768747833052,-151.0,0.00017099,2]
[402653790,1768747833062,-151.0,0.00017099,2]
[402653791,1768747833072,-151.0,0.00017099,2]
[402653792,1768747833081,-151.0,0.00017099,2]
[402653793,1768747833091,-574.12855637,0.00017099,2]
[402653794,1768747833100,-151.0,0.00017099,2]
[402653795,1768747833110,-151.0,0.00017099,2]
[402653796,1768747833119,-151.0,0.00017099,2]
[402653797,1768747833129,-151.0,0.00017099,2]
[402653798,1768747833138,-151.0,0.00017099,2]
[402653799,1768747833149,-151.0,0.00017099,2]
[402653800,1768747833158,-150.0,0.000171,2]
[402653801,1768747833168,-150.0,0.000171,2]
[402653802,1768747833178,-436.2,0.0001716,2]
[402653803,1768747833187,-935.58,0.00017178,2]
[402653804,1768747833197,-161.89780373,0.00017237,2]
[402653805,1768747833207,-1074.04,0.00017238,2]
[402653806,1768747833216,-436.2,0.00017253,2]
[402653807,1768747833226,-300.0,0.00017272,2]
[402653808,1768747833235,-150.0,0.0001728,2]
[402653809,1768747833245,-160.94,0.0001731,2]
[402653810,1768747833255,-436.2,0.00017346,2]
[402653811,1768747833265,-166.66,0.00017353,2]
[402653812,1768747833274,-2461.0,0.00017354,2]
[402653813,1768747833284,-5888.0,0.00017364,2]
[402653814,1768747833293,-1479.84901699,0.000174,2]
[402653815,1768747833303,-436.2,0.0001744,2]
[402653816,1768747833314,-1479.84901694,0.00017456,2]
[402653817,1768747833323,-150.0,0.0001746,2]
[402653818,1768747833333,-420.0,0.00017463,2]
[402653819,1768747833343,-4030.0,0.00017486,2]
[402653820,1768747833353,-2000.0,0.000175,2]
[402653821,1768747833363,-1479.84901694,0.00017511,2]
[402653822,1768747833373,-1074.04,0.00017512,2]
[402653823,1768747833383,-436.2,0.00017533,2]
[402653824,1768747833395,-1000.0,0.00017534,2]
[402653825,1768747833405,-2461.0,0.00017543,2]
[402653826,1768747833415,-1479.84901694,0.00017567,2]
[402653827,1768747833424,-5888.0,0.00017569,2]
[402653828,1768747833433,-150.0,0.00017573,2]
[402653829,1768747833443,-5888.0,0.0001758,2]
[402653830,1768747833453,-1479.84901694,0.00017622,2]
[402653831,1768747833462,-436.2,0.00017627,2]
[402653832,1768747833472,-150.0,0.0001764,2]
[402653833,1768747833482,-595.37131296,0.00017647,2]
[402653834,1768747833491,-150.0,0.00017666,2]
[402653835,1768747833500,-1479.84901694,0.00017678,2]
[402653836,1768747833510,-163.0,0.0001768,2]
[402653837,1768747833520,-436.2,0.0001772,2]
[402653838,1768747833530,-1000.0,0.00017726,2]
[402653839,1768747833539,-1479.84901694,0.00017733,2]
[402653840,1768747833548,-1000.0,0.00017741,2]
[402653841,1768747833557,-1000.0,0.00017743,2]
[402653842,1768747833567,-1000.0,0.00017746,2]
[402653843,1768747833576,-1000.0,0.00017757,2]
[402653844,1768747833587,-1000.0,0.00017762,2]
[402653845,1768747833597,-150.0,0.00017763,2]
[402653846,1768747833607,-1000.0,0.00017766,2]
[402653847,1768747833616,-419.7996,0.00017774,2]
[402653848,1768747833625,-1074.04,0.00017786,2]
[402653849,1768747833635,-1479.84901694,0.00017789,2]
[402653850,1768747833644,-500.0,0.00017799,2]
[402653851,1768747833653,-150.0,0.00017804,2]
[402653852,1768747833663,-4344.0,0.00017807,2]
[402653853,1768747833673,-500.0,0.00017808,2]
[402653854,1768747833682,-253.13099999,0.00017808,3]
[402653855,1768747833691,-1000.0,0.00017808,2]
[402653856,1768747833701,-250.0,0.00017808,4]
[402653857,1768747833711,-1000.0,0.00017808,2]
[402653858,1768747833720,-436.2,0.00017813,2]
[402653859,1768747833729,-181.026,0.00017814,2]
[402653860,1768747833738,-543.881,0.0001782,2]
[402653861,1768747833748,-150.0,0.0001782,2]
[402653862,1768747833759,-1479.84901694,0.00017844,2]
[402653863,1768747833770,-1000.0,0.00017846,2]
[402653864,1768747833780,-1000.0,0.00017853,2]
[402653865,1768747833790,-1000.0,0.00017854,2]
[402653866,1768747833799,-200.0,0.00017856,2]
[402653867,1768747833808,-1000.0,0.00017856,2]
[402653868,1768747833817,-1000.0,0.00017861,2]
[402653869,1768747833827,-168.0058912,0.00017862,2]
[402653870,1768747833836,-500.0,0.00017863,2]
[402653871,1768747833846,-1000.0,0.00017863,2]
[402653872,1768747833855,-1000.0,0.00017881,2]
[402653873,1768747833865,-1000.0,0.00017888,2]
[402653874,1768747833875,-1000.0,0.00017889,2]
[402653875,1768747833886,-1115.4735,0.000179,2]
[402653876,1768747833896,-36931.43820764,0.000179,2]
[402653877,1768747833906,-478.19006308,0.000179,2]
[402653878,1768747833916,-662.67114914,0.000179,2]
[402653879,1768747833928,-1479.84901694,0.000179,2]
[402653880,1768747833940,-1973.15225402,0.000179,2]
[402653881,1768747833951,-1000.0,0.00017901,2]
[402653882,1768747833960,-1000.0,0.00017902,2]
[402653883,1768747833970,-436.2,0.00017907,2]
[402653884,1768747833979,-1000.0,0.00017907,2]
[402653885,1768747833988,-500.0,0.00017918,2]
[402653886,1768747833998,-1000.0,0.0001793,2]
[402653887,1768747834007,-1000.0,0.00017942,2]
[402653888,1768747834019,-1000.0,0.00017945,2]
[402653889,1768747834030,-1000.0,0.00017971,2]
[402653890,1768747834040,-1000.0,0.00017972,2]
[402653891,1768747834051,-500.0,0.00017972,2]
[402653892,1768747834061,-250.0,0.00017973,4]
[402653893,1768747834070,-237.81029679,0.00017973,2]
[402653894,1768747834080,-500.0,0.00017973,2]
[402653895,1768747834090,-500.0,0.00017973,2]
[402653896,1768747834100,-500.0,0.00017973,2]
[402653897,1768747834113,-500.0,0.00017973,2]
[402653898,1768747834124,-500.0,0.00017973,2]
[402653899,1768747834135,-159.89321378,0.00017973,2]
[402653900,1768747834144,-308.59953803,0.00017973,2]
[402653901,1768747834154,-500.0,0.00017973,2]
[402653902,1768747834164,-500.0,0.00017973,2]
[402653903,1768747834173,-500.0,0.00017973,2]
[402653904,1768747834182,-500.0,0.00017973,2]
[402653905,1768747834193,-150.0,0.00017973,2]
[402653906,1768747834203,-1000.0,0.00017982,2]
[402653907,1768747834212,-1141.50828975,0.0001799,2]
[402653908,1768747834221,-1000.0,0.00017995,2]
[402653909,1768747834231,-300.0,0.00017999,2]
[402653910,1768747834240,-155.0,0.00017999,2]
[402653911,1768747834251,-13978.7310875,0.00017999,2]
[402653912,1768747834260,-300.0,0.00017999,2]
[402653913,1768747834269,-500.0,0.00017999,2]
[402653914,1768747834279,-300.0,0.00017999,2]
[402653915,1768747834289,-500.0,0.00017999,2]
[402653916,1768747834298,-300.0,0.00017999,2]
[402653917,1768747834307,-300.0,0.00017999,2]
[402653918,1768747834316,-670.55457234,0.00017999,2]
[402653919,1768747834326,-233913.6479139,0.00017999,2]
[402653920,1768747834335,-1000.0,0.00017999,2]
[402653921,1768747834345,-4133.0,0.00018,2]
[402653922,1768747834355,-150.0,0.00018,2]
[402653923,1768747834364,-150.0,0.00018,2]
[402653924,1768747834374,-400853.73856382,0.00018,2]
[402653925,1768747834384,-150.52054605,0.00018,2]
[402653926,1768747834399,-4988.0,0.00018,2]
[402653927,1768747834409,-511235.94671704,0.00018,2]
[402653928,1768747834435,-620.98453335,0.00018,2]
[402653929,1768747837720,-1000.0,0.00016276,2]
[402653930,1768747837729,-800.0,0.00017873,4]
[402653931,1768747837740,-1434.24970126,0.00018,2]
[402653932,1768747837752,-1645.55762259,0.00018,2]
[402653933,1768747837861,-500.78571235,0.00018,2]
[402654129,1768747839908,-355.58824735,0.00018,2]
[402654141,1768747840087,-751154.96492395,0.00018,2]
[402654142,1768747840098,-1662028.43703306,0.00018,2]
[402654143,1768747840107,-500.0,0.00018,2]
[402654144,1768747840116,-500.0,0.00018,2]
[402654145,1768747840125,-500.0,0.00018,2]
[402654146,1768747840134,-500.0,0.00018,2]
[402654147,1768747840143,-500.0,0.00018,2]
[402654148,1768747840151,-500.0,0.00018,2]
[402654149,1768747840160,-500.0,0.00018,2]
[402654150,1768747840169,-293.34460705,0.00018,2]
[402654151,1768747840178,-102770.15979986,0.00018,2]
[402654152,1768747840189,-1197.13811136,0.00018,2]
[402654513,1768747844545,-1740985.03549904,0.00018,2]
[402654514,1768747844606,-1593.1946975,0.00018,2]
[402654515,1768747844618,-534.74828065,0.00018,2]
[402654535,1768747845736,-1603.60620499,0.00018,2]
[402654541,1768747895758,395.66,0.00026081,120]
[402654546,1768748036963,300.0,0.00027397,120]
[402654563,1768748398542,162.93,0.00018,30]
[402654567,1768748455979,1645.0,0.00027397,120]
[402654582,1768748542409,4938.0,0.000155,2]
[402654586,1768748587790,1155.75,0.00013842,2]
[402654588,1768748629391,720.0,0.00027397,120]
[402654618,1768748887618,616.25,0.00015,2]
[402654619,1768748887649,248.47273079,0.00015,2]
[402654620,1768748887676,225.27726921,0.00015,2]
[402654640,1768749031861,-502.71264906,0.00015973,2]
[402654641,1768749031871,-128.04074668,0.00015973,2]
[402654642,1768749031883,-371.95925332,0.00015973,2]
[402654643,1768749031892,-151.0,0.00016042,2]
[402654644,1768749031901,-150.0,0.000162,2]
[402654645,1768749031910,-17.89610968,0.000162,2]
[402654646,1768749031920,-132.10389032,0.000162,2]
[402654647,1768749031932,-150.0,0.000162,2]
[402654648,1768749031941,-150.0,0.000162,2]
[402654649,1768749031951,-150.0,0.000162,2]
[402654650,1768749031960,-115.23046134,0.000162,2]
[402654651,1768749031972,-34.76953866,0.000162,2]
[402654652,1768749031982,-300.0,0.00016215,2]
[402654653,1768749031991,-5198.15950862,0.00016216,2]
[402654654,1768749032031,-500.0,0.00016216,2]
[402654667,1768749037929,-151.89110621,0.00016215,2]
[402654668,1768749037941,-280.77020663,0.00016215,2]
[402654669,1768749037951,-500.0,0.00016215,2]
[402654670,1768749037961,-23.57868716,0.00016215,2]
[402654671,1768749038048,-476.42131284,0.00016215,2]
[402654672,1768749038059,-500.0,0.00016215,2]
[402654673,1768749038068,-500.0,0.00016215,2]
[402654674,1768749038078,-500.0,0.00016215,2]
[402654675,1768749038088,-579.79917337,0.00016215,2]
[402654676,1768749038097,-69.07951812,0.00016216,2]
[402654828,1768749039950,-4583.7157465,0.00016216,2]
[402654831,1768749039962,-266818.53822676,0.00016216,2]
[402654833,1768749039973,-5888.0,0.00016559,2]
[402654835,1768749039983,-3449.62,0.00016563,2]
[402654837,1768749039993,-1256.42,0.00016586,2]
[402654839,1768749040003,-63132.78,0.00016599,2]
[402654841,1768749040013,-200.0,0.00016667,2]
[402654843,1768749040023,-10400.03,0.00016709,2]
[402654845,1768749040032,-5888.0,0.00016927,2]
[402654847,1768749040042,-231.40398252,0.00016983,2]
[402654849,1768749040051,-250.0,0.00017,2]
[402654851,1768749040062,-3000.0,0.00017,2]
[402654853,1768749040072,-600.0,0.00017,6]
[402654855,1768749040081,-5888.0,0.00017058,2]
[402654857,1768749040091,-4001.0,0.00017099,2]
[402654859,1768749040102,-574.12855637,0.00017099,2]
[402654861,1768749040111,-151.0,0.00017099,2]
[402654863,1768749040120,-151.0,0.00017099,2]
[402654865,1768749040130,-151.0,0.00017099,2]
[402654867,1768749040140,-151.0,0.00017099,2]
[402654869,1768749040150,-151.0,0.00017099,2]
[402654871,1768749040160,-151.0,0.00017099,2]
[402654873,1768749040169,-151.0,0.00017099,2]
[402654875,1768749040179,-151.0,0.00017099,2]
[402654877,1768749040188,-151.0,0.00017099,2]
[402654879,1768749040198,-151.0,0.00017099,2]
[402654881,1768749040207,-151.0,0.00017099,2]
[402654883,1768749040216,-1300.0,0.000171,6]
[402654886,1768749040230,-1177.0,0.000172,2]
[402654888,1768749040239,-2000.0,0.000172,6]
[402654890,1768749040249,-161.89780373,0.00017237,2]
[402654892,1768749040258,-1000.0,0.0001726,2]
[402654894,1768749040268,-150.0,0.000173,2]
[402654896,1768749040277,-2700.0,0.000173,6]
[402654898,1768749040287,-1177.0,0.00017377,2]
[402654900,1768749040296,-395.66,0.00017387,2]
[402654902,1768749040306,-3400.0,0.000174,6]
[402654904,1768749040316,-150.0,0.00017404,2]
[402654906,1768749040326,-2000.0,0.000175,2]
[402654908,1768749040335,-600.0,0.000175,6]
[402654910,1768749040344,-1000.0,0.00017534,2]
[402654912,1768749040354,-1177.0,0.00017564,2]
[402654914,1768749040364,-600.0,0.000176,6]
[402654916,1768749040373,-150.0,0.00017639,2]
[402654918,1768749040383,-595.37131296,0.00017647,2]
[402654920,1768749040393,-600.0,0.000177,6]
[402654922,1768749040402,-420.0,0.00017724,2]
[402654924,1768749040411,-1202.0,0.0001775,2]
[402654926,1768749040424,-915.0,0.0001775,2]
[402654928,1768749040433,-4826.0,0.0001775,2]
[402654930,1768749040442,-566.0,0.0001775,2]
[402654932,1768749040452,-2439.0,0.0001775,2]
[402654934,1768749040461,-150.0,0.00017763,2]
[402654936,1768749040470,-600.0,0.000178,6]
[402654979,1768749040479,-150.0,0.00017808,2]
[402654981,1768749040854,-1000.0,0.00017808,2]
[402654983,1768749040864,-435.105,0.00017849,2]
[402654985,1768749040873,-200.0,0.00017856,2]
[402654988,1768749040884,-152.80803961,0.00017863,2]
[402654990,1768749040893,-3265.53,0.00017863,7]
[402654991,1768749040903,-3265.53,0.00017863,7]
[402654994,1768749040913,-3265.53,0.00017863,7]
[402654996,1768749040923,-3265.53,0.00017863,7]
[402654998,1768749040935,-201.0,0.0001789,2]
[402655000,1768749040944,-1362.3845,0.000179,2]
[402655002,1768749040953,-2500.0,0.000179,2]
[402655003,1768749040963,-2916.04378679,0.000179,2]
[402655005,1768749040974,-1469.0,0.000179,6]
[402655008,1768749040983,-151.0,0.00017914,2]
[402655010,1768749040993,-500.0,0.00017973,2]
[402655012,1768749041005,-500.0,0.00017973,2]
[402655014,1768749041015,-500.0,0.00017973,2]
[402655016,1768749041024,-500.0,0.00017973,2]
[402655018,1768749041033,-500.0,0.00017973,2]
[402655020,1768749041043,-500.0,0.00017973,2]
[402655022,1768749041052,-500.0,0.00017973,2]
[402655024,1768749041061,-500.0,0.00017973,2]
[402655026,1768749041070,-150.0,0.00017973,2]
[402655028,1768749041080,-300.0,0.00017999,2]
[402655031,1768749041100,-300.0,0.00017999,2]
[402655033,1768749041111,-3317.0,0.00018,2]
[402655035,1768749041121,-150.0,0.00018,2]
[402655037,1768749041131,-150.0,0.00018,2]
[402655039,1768749041141,-1256052.6837591,0.00018,2]
[402655041,1768749041151,-827036.91139608,0.00018,2]
[402655046,1768749041190,-579.55500076,0.00018,2]
[402655048,1768749041202,-331.74999999,0.00018,2]
[402655051,1768749041217,-2659.561022,0.00018,2]
[402655169,1768749045139,-253.14,0.000178,2]
[402655170,1768749045149,-312090.51436996,0.00018,2]
[402655171,1768749045315,-7191.31229662,0.00018,2]
[402655172,1768749045397,-32676.42857622,0.00018,2]
[402655173,1768749045498,-642.74926652,0.00018,2]
[402655183,1768749045986,-6562.0,0.0001775,2]
[402655184,1768749046001,-257911.83291009,0.00018,2]
[402655185,1768749046104,-561.54357013,0.00018,2]
[402655186,1768749046224,-1166.43152022,0.00018,2]
[402655195,1768749202195,-2000.0,0.000185,30]
[402655206,1768749694445,2883.16137745,0.00027397,120]
[402655207,1768749726605,600.0,0.00027397,120]
[402655208,1768749728078,600.0,0.00027397,120]
[402655209,1768749731070,600.0,0.00027397,120]
[402655210,1768749734159,600.0,0.00027397,120]
[402655211,1768749737079,600.0,0.00027397,120]
[402655212,1768749740074,600.0,0.00027397,120]
[402655213,1768749743105,600.0,0.00027397,120]
[402655214,1768749746255,600.0,0.00027397,120]
[402655215,1768749749080,600.0,0.00027397,120]
[402655216,1768749752073,600.0,0.00027397,120]
[402655217,1768749755092,600.0,0.00027397,120]
[402655218,1768749758093,600.0,0.00027397,120]
[402655219,1768749761078,600.0,0.00027397,120]
[402655220,1768749764080,600.0,0.00027397,120]
[402655221,1768749767080,600.0,0.00027397,120]
[402655222,1768749770078,600.0,0.00027397,120]
[402655223,1768749773082,600.0,0.00027397,120]
[402655224,1768749808629,166.66,0.00015067,2]
[402655225,1768750158094,-166.66,0.00015385,2]
[402655226,1768750158115,-300.0,0.00015464,2]
[402655227,1768750158135,-250.0,0.00015543,2]
[402655228,1768750158156,-161.42049034,0.00015602,2]
[402655229,1768750158176,-300.0,0.00015638,2]
[402655230,1768750158197,-300.0,0.00015638,2]
[402655231,1768750158217,-434.39659156,0.00015638,2]
[402655232,1768750158238,-166.66,0.00015702,2]
[402655233,1768750158258,-254.00269941,0.00015759,2]
[402655234,1768750158279,-250.0,0.000158,2]
[402655235,1768750158299,-231.40398252,0.00015838,2]
[402655236,1768750158319,-500.86,0.00015918,2]
[402655237,1768750158341,-1200.0,0.00015953,2]
[402655238,1768750158373,-300.0,0.00015953,2]
[402655239,1768750158396,-283.0,0.00015954,2]
[402655240,1768750158423,-295.70302417,0.00015954,2]
[402655247,1768750232024,-273.97680057,0.00015954,2]
[402655248,1768750232036,-1200.0,0.00015972,2]
[402655249,1768750232046,-300.0,0.00015972,2]
[402655250,1768750232056,-152.84319943,0.00015972,2]
[402655251,1768750232069,-147.15680057,0.00015972,2]
[402655252,1768750232079,-300.0,0.00015972,2]
[402655253,1768750232088,-500.0,0.00015973,2]
[402655254,1768750232099,-84.84936896,0.00015973,2]
[402655255,1768750232110,-415.15063104,0.00015973,2]
[402655256,1768750232120,-136.69032954,0.00015973,2]
[402655257,1768750232132,-363.30967046,0.00015973,2]
[402655258,1768750232143,-500.0,0.00015973,2]
[402655259,1768750232154,-500.0,0.00015973,2]
[402655260,1768750232164,-306.14032954,0.00015973,2]
[402655261,1768750232176,-193.85967046,0.00015973,2]
[402655262,1768750232189,-500.0,0.00015973,2]
[402655263,1768750232198,-500.0,0.00016,2]
[402655264,1768750232208,-166.66,0.00016019,2]
[402655265,1768750232218,-250.0,0.000161,2]
[402655267,1768750232228,-342.19990815,0.00016115,2]
[402655269,1768750232238,-7665.08042139,0.00016116,2]
[402655272,1768750232255,-15500.59607861,0.00016116,2]
[402655274,1768750232264,-150.0,0.000162,2]
[402655276,1768750232274,-150.0,0.000162,2]